fUST/lending_fUST_20250718
["ID","MTS","AMOUNT","RATE_DAILY","PERIOD"]
[372932031,1752813043093,-468.35187788,0.00016438,2]
[372932032,1752813043102,-460.0,0.00016438,2]
[372932033,1752813043111,-460.0,0.00016438,2]
[372932034,1752813043120,-460.0,0.00016438,2]
[372932036,1752813043130,-460.0,0.00016438,2]
[372932037,1752813043139,-460.0,0.00016438,2]
[372932038,1752813043149,-461.0044925,0.00016438,2]
[372932039,1752813043159,-460.0,0.00016438,2]
[372932040,1752813043168,-646.05,0.00016438,2]
[372932041,1752813043178,-460.0,0.00016438,2]
[372932042,1752813043189,-460.0,0.00016438,2]
[372932043,1752813043199,-460.0,0.00016438,2]
[372932044,1752813043208,-502.94281649,0.00016438,2]
[372932045,1752813043218,-460.0,0.00016438,2]
[372932046,1752813043227,-690.82,0.00016438,2]
[372932047,1752813043237,-460.0,0.00016438,2]
[372932048,1752813043246,-460.0,0.00016438,2]
[372932049,1752813043256,-460.0,0.00016438,2]
[372932050,1752813043265,-460.0,0.00016438,2]
[372932051,1752813043275,-2756.34,0.00016438,2]
[372932052,1752813043284,-460.0,0.00016438,2]
[372932053,1752813043294,-460.0,0.00016438,2]
[372932054,1752813043303,-302.23559407,0.00016438,2]
[372932055,1752813043313,-460.0,0.00016438,2]
[372932056,1752813043323,-460.0,0.00016438,2]
[372932057,1752813043332,-460.0,0.00016438,2]
[372932058,1752813043343,-1040.86,0.00016438,2]
[372932059,1752813043352,-460.0,0.00016438,2]
[372932060,1752813043362,-460.0,0.00016438,2]
[372932061,1752813043372,-460.0,0.00016438,2]
[372932062,1752813043382,-460.0,0.00016438,2]
[372932063,1752813043392,-467.14,0.00016438,2]
[372932064,1752813043401,-460.0,0.00016438,2]
[372932067,1752813043416,-460.0,0.00016438,2]
[372932069,1752813043425,-4760.88,0.00016438,2]
[372932071,1752813043436,-472.26,0.00016438,2]
[372932073,1752813043446,-460.0,0.00016438,2]
[372932074,1752813043456,-460.0,0.00016438,2]
[372932076,1752813043466,-460.0,0.00016438,2]
[372932078,1752813043476,-460.0,0.00016438,2]
[372932079,1752813043486,-570.06,0.00016438,2]
[372932080,1752813043496,-460.0,0.00016438,2]
[372932082,1752813043506,-4406.26,0.00016438,2]
[372932083,1752813043515,-460.0,0.00016438,2]
[372932084,1752813043524,-462.85288859,0.00016438,2]
[372932085,1752813043534,-508.35,0.00016438,2]
[372932086,1752813043543,-472.91,0.00016438,2]
[372932087,1752813043553,-460.0,0.00016438,2]
[372932088,1752813043562,-460.0,0.00016438,2]
[372932089,1752813043572,-460.0,0.00016438,2]
[372932090,1752813043581,-856.08,0.00016438,2]
[372932091,1752813043591,-460.0,0.00016438,2]
[372932092,1752813043600,-460.0,0.00016438,2]
[372932093,1752813043609,-460.0,0.00016438,2]
[372932094,1752813043619,-460.0,0.00016438,2]
[372932095,1752813043636,-487.92,0.00016438,2]
[372932096,1752813043654,-460.0,0.00016438,2]
[372932097,1752813043667,-460.0,0.00016438,2]
[372932099,1752813043677,-460.0,0.00016438,2]
[372932101,1752813043686,-460.0,0.00016438,2]
[372932102,1752813043696,-1340.97,0.00016438,2]
[372932104,1752813043705,-460.0,0.00016438,2]
[372932106,1752813043715,-460.0,0.00016438,2]
[372932108,1752813043724,-582.41,0.00016438,2]
[372932110,1752813043734,-460.0,0.00016438,2]
[372932112,1752813043743,-2433.29,0.00016438,2]
[372932114,1752813043753,-462.20570817,0.00016438,2]
[372932116,1752813043762,-460.0,0.00016438,2]
[372932118,1752813043772,-1705.16,0.00016438,2]
[372932120,1752813043781,-460.0,0.00016438,2]
[372932122,1752813043790,-460.0,0.00016438,2]
[372932124,1752813043799,-461.94570617,0.00016438,2]
[372932126,1752813043808,-460.0,0.00016438,2]
[372932128,1752813043818,-460.0,0.00016438,2]
[372932130,1752813043827,-460.0,0.00016438,2]
[372932132,1752813043836,-460.0,0.00016438,2]
[372932134,1752813043845,-460.0,0.00016438,2]
[372932136,1752813043855,-1722.56,0.00016438,2]
[372932138,1752813043864,-460.0,0.00016438,2]
[372932140,1752813043873,-460.0,0.00016438,2]
[372932142,1752813043882,-460.0,0.00016438,2]
[372932144,1752813043891,-460.0,0.00016438,2]
[372932146,1752813043901,-460.0,0.00016438,2]
[372932148,1752813043911,-460.0,0.00016438,2]
[372932149,1752813043920,-460.0,0.00016438,2]
[372932150,1752813043929,-460.0,0.00016438,2]
[372932151,1752813043939,-460.0,0.00016438,2]
[372932152,1752813043948,-460.0,0.00016438,2]
[372932153,1752813043958,-537.09545503,0.00016438,2]
[372932154,1752813043967,-460.0,0.00016438,2]
[372932155,1752813043977,-505.66,0.00016438,2]
[372932156,1752813043986,-460.0,0.00016438,2]
[372932157,1752813043996,-2489.82,0.00016438,2]
[372932158,1752813044005,-2945.34,0.00016438,2]
[372932159,1752813044015,-460.0,0.00016438,2]
[372932160,1752813044024,-460.0,0.00016438,2]
[372932161,1752813044033,-460.0,0.00016438,2]
[372932162,1752813044042,-460.0,0.00016438,2]
[372932163,1752813044052,-460.0,0.00016438,2]
[372932164,1752813044061,-461.66446139,0.00016438,2]
[372932165,1752813044071,-633.48,0.00016438,2]
[372932166,1752813044080,-460.0,0.00016438,2]
[372932167,1752813044090,-460.0,0.00016438,2]
[372932168,1752813044099,-460.0,0.00016438,2]
[372932169,1752813044108,-460.0,0.00016438,2]
[372932170,1752813044118,-460.0,0.00016438,2]
[372932171,1752813044127,-505.48432054,0.00016438,2]
[372932172,1752813044136,-502.99856728,0.00016473,2]
[372932173,1752813044146,-500.0,0.00016473,2]
[372932174,1752813044155,-500.0,0.00016473,2]
[372932175,1752813044165,-500.0,0.00016473,2]
[372932176,1752813044174,-500.0,0.00016473,2]
[372932177,1752813044184,-500.0,0.00016473,2]
[372932178,1752813044292,-174.22610847,0.00016473,2]
[372932179,1752813044303,-375.77260743,0.00016473,2]
[372932180,1752813044313,-500.0,0.00016473,2]
[372932181,1752813044323,-500.0,0.00016473,2]
[372932182,1752813044332,-461.61447725,0.00016712,2]
[372932183,1752813044342,-460.0,0.00016712,2]
[372932184,1752813044351,-357.26382968,0.00016712,2]
[372932185,1752813044361,-467.14112684,0.00016712,2]
[372932186,1752813044370,-460.0,0.00016712,2]
[372932187,1752813044380,-460.0,0.00016712,2]
[372932188,1752813044389,-465.79531948,0.00016712,2]
[372932189,1752813044399,-460.0,0.00016712,2]
[372932190,1752813044410,-464.29624788,0.00016712,2]
[372932191,1752813044421,-460.0,0.00016712,2]
[372932192,1752813044431,-460.0,0.00016712,2]
[372932193,1752813044441,-460.0,0.00016712,2]
[372932194,1752813044450,-460.0,0.00016712,2]
[372932195,1752813044461,-460.0,0.00016712,2]
[372932196,1752813044470,-460.0,0.00016712,2]
[372932197,1752813044478,-460.0,0.00016712,2]
[372932198,1752813044488,-460.0,0.00016712,2]
[372932199,1752813044497,-267.75515917,0.00016712,2]
[372932200,1752813044506,-530.1115719,0.00016712,2]
[372932201,1752813044515,-460.0,0.00016712,2]
[372932202,1752813044524,-460.0,0.00016712,2]
[372932203,1752813044533,-460.0,0.00016712,2]
[372932204,1752813044542,-460.0,0.00016712,2]
[372932205,1752813044551,-463.67983135,0.00016712,2]
[372932206,1752813044560,-460.0,0.00016712,2]
[372932207,1752813044569,-460.0,0.00016712,2]
[372932208,1752813044578,-518.30804376,0.00016712,2]
[372932209,1752813044587,-462.69246957,0.00016712,2]
[372932210,1752813044596,-460.0,0.00016712,2]
[372932211,1752813044605,-462.07299955,0.00016712,2]
[372932212,1752813044614,-461.41329803,0.00016712,2]
[372932213,1752813044624,-464.71040529,0.00016712,2]
[372932214,1752813044633,-460.0,0.00016712,2]
[372932215,1752813044641,-460.0,0.00016712,2]
[372932216,1752813044650,-460.0,0.00016712,2]
[372932217,1752813044659,-401.44924144,0.00016712,2]
[372932218,1752813044668,-460.0,0.00016712,2]
[372932219,1752813044677,-460.0,0.00016712,2]
[372932220,1752813044686,-460.0,0.00016712,2]
[372932221,1752813044696,-460.0,0.00016712,2]
[372932222,1752813044705,-461.59381483,0.00016712,2]
[372932223,1752813044714,-460.0,0.00016712,2]
[372932224,1752813044723,-460.0,0.00016712,2]
[372932225,1752813044732,-460.0,0.00016712,2]
[372932226,1752813044741,-460.0,0.00016712,2]
[372932227,1752813044750,-508.05684862,0.00016712,2]
[372932228,1752813044759,-461.19739931,0.00016712,2]
[372932229,1752813044768,-460.81468075,0.00016712,2]
[372932230,1752813044777,-462.56336947,0.00016712,2]
[372932231,1752813044785,-461.17260961,0.00016712,2]
[372932232,1752813044794,-513.5,0.00016712,2]
[372932233,1752813044803,-460.0,0.00016712,2]
[372932234,1752813044813,-460.0,0.00016712,2]
[372932235,1752813044823,-567.04,0.00016712,2]
[372932236,1752813044832,-460.77518694,0.00016712,2]
[372932237,1752813044841,-460.0,0.00016712,2]
[372932238,1752813044852,-460.96697304,0.00016712,2]
[372932239,1752813044861,-460.0,0.00016712,2]
[372932240,1752813044870,-460.0,0.00016712,2]
[372932241,1752813044880,-460.0,0.00016712,2]
[372932242,1752813044889,-465.79572776,0.00016712,2]
[372932243,1752813044898,-460.0,0.00016712,2]
[372932244,1752813044908,-460.0,0.00016712,2]
[372932245,1752813044916,-467.75601086,0.00016712,2]
[372932246,1752813044925,-450.01535071,0.00016712,2]
[372932247,1752813044935,-460.0,0.00016712,2]
[372932248,1752813044944,-357.86084281,0.00016712,2]
[372932249,1752813044954,-460.0,0.00016712,2]
[372932250,1752813044963,-460.0,0.00016712,2]
[372932251,1752813044972,-460.0,0.00016712,2]
[372932252,1752813044982,-460.0,0.00016712,2]
[372932253,1752813044992,-351.61480165,0.00016712,2]
[372932254,1752813045001,-460.0,0.00016712,2]
[372932255,1752813045011,-460.0,0.00016712,2]
[372932256,1752813045020,-460.0,0.00016712,2]
[372932257,1752813045029,-460.0,0.00016712,2]
[372932258,1752813045039,-460.0,0.00016712,2]
[372932259,1752813045048,-460.0,0.00016712,2]
[372932260,1752813045057,-460.0,0.00016712,2]
[372932261,1752813045067,-176.03190433,0.00016712,2]
[372932262,1752813045076,-460.0,0.00016712,2]
[372932263,1752813045086,-460.0,0.00016712,2]
[372932264,1752813045096,-462.967335,0.00016712,2]
[372932265,1752813045105,-462.55623721,0.00016712,2]
[372932266,1752813045115,-465.6235862,0.00016712,2]
[372932267,1752813045125,-460.0,0.00016712,2]
[372932268,1752813045135,-460.0,0.00016712,2]
[372932269,1752813045144,-489.35476866,0.00016712,2]
[372932270,1752813045153,-460.0,0.00016712,2]
[372932271,1752813045163,-460.0,0.00016712,2]
[372932272,1752813045173,-268.82303837,0.00016712,2]
[372932273,1752813045182,-460.0,0.00016712,2]
[372932274,1752813045194,-460.0,0.00016712,2]
[372932275,1752813045203,-586.08404372,0.00016712,2]
[372932276,1752813045213,-460.0,0.00016712,2]
[372932277,1752813045223,-460.0,0.00016712,2]
[372932278,1752813045232,-777.35,0.00016712,2]
[372932279,1752813045242,-464.10243402,0.00016712,2]
[372932280,1752813045251,-558.88,0.00016712,2]
[372932281,1752813045262,-460.0,0.00016712,2]
[372932282,1752813045271,-460.0,0.00016712,2]
[372932283,1752813045281,-460.0,0.00016712,2]
[372932284,1752813045291,-460.0,0.00016712,2]
[372932285,1752813045301,-535.97970742,0.00016712,2]
[372932286,1752813045311,-460.0,0.00016712,2]
[372932287,1752813045320,-460.0,0.00016712,2]
[372932288,1752813045330,-460.0,0.00016712,2]
[372932289,1752813045339,-460.0,0.00016712,2]
[372932290,1752813045349,-460.0,0.00016712,2]
[372932291,1752813045360,-460.0,0.00016712,2]
[372932292,1752813045370,-460.0,0.00016712,2]
[372932293,1752813045380,-462.32835616,0.00016712,2]
[372932294,1752813045391,-463.07366615,0.00016712,2]
[372932295,1752813045400,-460.0,0.00016712,2]
[372932296,1752813045413,-460.0,0.00016712,2]
[372932297,1752813045423,-398.3183134,0.00016712,2]
[372932298,1752813045432,-460.0,0.00016712,2]
[372932299,1752813045442,-460.0,0.00016712,2]
[372932300,1752813045452,-460.0,0.00016712,2]
[372932301,1752813045463,-460.0,0.00016712,2]
[372932302,1752813045472,-460.0,0.00016712,2]
[372932303,1752813045482,-460.0,0.00016712,2]
[372932304,1752813045493,-460.0,0.00016712,2]
[372932305,1752813045503,-460.0,0.00016712,2]
[372932306,1752813045513,-460.0,0.00016712,2]
[372932307,1752813045522,-460.0,0.00016712,2]
[372932308,1752813045531,-460.0,0.00016712,2]
[372932309,1752813045541,-463.85757503,0.00016712,2]
[372932310,1752813045550,-463.82926034,0.00016712,2]
[372932311,1752813045559,-460.0,0.00016712,2]
[372932312,1752813045569,-787.34,0.00016712,2]
[372932313,1752813045579,-460.0,0.00016712,2]
[372932314,1752813045589,-460.0,0.00016712,2]
[372932315,1752813045599,-460.0,0.00016712,2]
[372932316,1752813045608,-299.15788632,0.00016712,2]
[372932317,1752813045617,-1702.85,0.00016712,2]
[372932318,1752813045626,-460.0,0.00016712,2]
[372932319,1752813045636,-194.36995764,0.00016712,2]
[372932320,1752813045646,-460.0,0.00016712,2]
[372932321,1752813045655,-460.0,0.00016712,2]
[372932322,1752813045665,-460.0,0.00016712,2]
[372932323,1752813045675,-460.0,0.00016712,2]
[372932324,1752813045684,-460.0,0.00016712,2]
[372932325,1752813045694,-547.71,0.00016712,2]
[372932326,1752813045703,-555.77,0.00016712,2]
[372932327,1752813045713,-477.78776284,0.00016712,2]
[372932328,1752813045722,-460.0,0.00016712,2]
[372932329,1752813045732,-460.0,0.00016712,2]
[372932330,1752813045741,-460.0,0.00016712,2]
[372932331,1752813045750,-460.0,0.00016712,2]
[372932332,1752813045760,-460.0,0.00016712,2]
[372932333,1752813045769,-460.0,0.00016712,2]
[372932334,1752813045778,-460.0,0.00016712,2]
[372932335,1752813045788,-460.0,0.00016712,2]
[372932336,1752813045798,-535.54,0.00016712,2]
[372932337,1752813045807,-460.0,0.00016712,2]
[372932338,1752813045816,-471.99850241,0.00016712,2]
[372932339,1752813045825,-460.0,0.00016712,2]
[372932340,1752813045835,-465.82633852,0.00016712,2]
[372932341,1752813045844,-460.0,0.00016712,2]
[372932342,1752813045853,-460.0,0.00016712,2]
[372932343,1752813045862,-1010.83,0.00016712,2]
[372932344,1752813045872,-460.0,0.00016712,2]
[372932345,1752813045882,-460.0,0.00016712,2]
[372932346,1752813045890,-461.7650076,0.00016712,2]
[372932347,1752813045899,-460.0,0.00016712,2]
[372932348,1752813045909,-460.0,0.00016712,2]
[372932349,1752813045919,-460.0,0.00016712,2]
[372932350,1752813045928,-460.0,0.00016712,2]
[372932351,1752813045939,-560.37,0.00016712,2]
[372932352,1752813045948,-460.0,0.00016712,2]
[372932353,1752813045957,-460.0,0.00016712,2]
[372932354,1752813045967,-465.72803473,0.00016712,2]
[372932355,1752813045977,-431.76213439,0.00016712,2]
[372932356,1752813045986,-460.0,0.00016712,2]
[372932357,1752813045996,-2738.5,0.00016712,2]
[372932358,1752813046005,-461.18789532,0.00016712,2]
[372932359,1752813046015,-460.0,0.00016712,2]
[372932360,1752813046024,-460.0,0.00016712,2]
[372932361,1752813046034,-460.0,0.00016712,2]
[372932362,1752813046043,-460.0,0.00016712,2]
[372932363,1752813046053,-464.13516193,0.00016712,2]
[372932364,1752813046062,-461.16205515,0.00016712,2]
[372932365,1752813046070,-460.0,0.00016712,2]
[372932366,1752813046079,-460.0,0.00016712,2]
[372932367,1752813046088,-525.79,0.00016712,2]
[372932368,1752813046098,-460.0,0.00016712,2]
[372932370,1752813046107,-536.66,0.00016712,2]
[372932372,1752813046117,-460.0,0.00016712,2]
[372932374,1752813046126,-460.0,0.00016712,2]
[372932376,1752813046136,-463.71264878,0.00016712,2]
[372932377,1752813046145,-460.0,0.00016712,2]
[372932378,1752813046155,-2535.91,0.00016712,2]
[372932380,1752813046164,-460.0,0.00016712,2]
[372932381,1752813046174,-460.0,0.00016712,2]
[372932382,1752813046183,-460.0,0.00016712,2]
[372932384,1752813046194,-3286.51,0.00016712,2]
[372932385,1752813046203,-513.61,0.00016712,2]
[372932386,1752813046213,-460.0,0.00016712,2]
[372932387,1752813046222,-460.0,0.00016712,2]
[372932388,1752813046232,-460.0,0.00016712,2]
[372932389,1752813046242,-460.0,0.00016712,2]
[372932390,1752813046252,-479.16,0.00016712,2]
[372932391,1752813046262,-460.0,0.00016712,2]
[372932392,1752813046271,-852.12,0.00016712,2]
[372932393,1752813046281,-460.0,0.00016712,2]
[372932394,1752813046290,-1073.62,0.00016712,2]
[372932395,1752813046300,-460.0,0.00016712,2]
[372932396,1752813046310,-460.0,0.00016712,2]
[372932397,1752813046320,-460.0,0.00016712,2]
[372932398,1752813046330,-1477.28,0.00016712,2]
[372932399,1752813046339,-460.0,0.00016712,2]
[372932400,1752813046348,-460.0,0.00016712,2]
[372932401,1752813046358,-774.58,0.00016712,2]
[372932402,1752813046367,-460.0,0.00016712,2]
[372932404,1752813046376,-441.36906242,0.00016712,2]
[372932405,1752813046385,-460.0,0.00016712,2]
[372932406,1752813046395,-460.0,0.00016712,2]
[372932407,1752813046404,-638.51,0.00016712,2]
[372932408,1752813046415,-571.08,0.00016712,2]
[372932409,1752813046424,-1916.82,0.00016712,2]
[372932411,1752813046433,-460.0,0.00016712,2]
[372932413,1752813046442,-1136.96,0.00016712,2]
[372932414,1752813046452,-564.01599346,0.00016712,2]
[372932415,1752813046460,-460.0,0.00016712,2]
[372932416,1752813046469,-460.0,0.00016712,2]
[372932417,1752813046478,-460.0,0.00016712,2]
[372932419,1752813046490,-460.0,0.00016712,2]
[372932421,1752813046499,-419.82431822,0.00016712,2]
[372932423,1752813046508,-646.05,0.00016712,2]
[372932425,1752813046517,-460.0,0.00016712,2]
[372932427,1752813046525,-203.53298938,0.00016712,2]
[372932429,1752813046534,-460.0,0.00016712,2]
[372932441,1752813046635,-460.0,0.00016712,2]
[372932443,1752813046645,-690.82,0.00016712,2]
[372932445,1752813046655,-460.0,0.00016712,2]
[372932447,1752813046663,-460.0,0.00016712,2]
[372932449,1752813046674,-460.0,0.00016712,2]
[372932451,1752813046683,-2756.34,0.00016712,2]
[372932453,1752813046694,-460.0,0.00016712,2]
[372932455,1752813046704,-460.0,0.00016712,2]
[372932456,1752813046714,-485.84065227,0.00016712,2]
[372932458,1752813046724,-460.0,0.00016712,2]
[372932460,1752813046733,-460.0,0.00016712,2]
[372932461,1752813046743,-1040.86,0.00016712,2]
[372932463,1752813046752,-460.0,0.00016712,2]
[372932464,1752813046762,-460.0,0.00016712,2]
[372932466,1752813046771,-460.0,0.00016712,2]
[372932467,1752813046780,-460.0,0.00016712,2]
[372932469,1752813046790,-467.14,0.00016712,2]
[372932470,1752813046799,-460.0,0.00016712,2]
[372932471,1752813046808,-4760.88,0.00016712,2]
[372932472,1752813046817,-472.26,0.00016712,2]
[372932473,1752813046826,-460.0,0.00016712,2]
[372932474,1752813046839,-460.0,0.00016712,2]
[372932475,1752813046848,-460.0,0.00016712,2]
[372932476,1752813046858,-461.59726495,0.00016712,2]
[372932477,1752813046869,-570.06,0.00016712,2]
[372932478,1752813046878,-376.70931522,0.00016712,2]
[372932479,1752813046887,-4406.26,0.00016712,2]
[372932480,1752813046898,-508.35,0.00016712,2]
[372932481,1752813046908,-472.91,0.00016712,2]
[372932482,1752813046917,-460.0,0.00016712,2]
[372932483,1752813046927,-460.0,0.00016712,2]
[372932485,1752813046937,-856.08,0.00016712,2]
[372932487,1752813046946,-462.39894201,0.00016712,2]
[372932488,1752813046956,-412.65097454,0.00016712,2]
[372932489,1752813046965,-460.0,0.00016712,2]
[372932490,1752813046974,-460.0,0.00016712,2]
[372932491,1752813046984,-487.92,0.00016712,2]
[372932492,1752813046993,-460.0,0.00016712,2]
[372932493,1752813047003,-460.0,0.00016712,2]
[372932494,1752813047012,-460.0,0.00016712,2]
[372932495,1752813047022,-1340.97,0.00016712,2]
[372932496,1752813047031,-582.41,0.00016712,2]
[372932497,1752813047041,-460.0,0.00016712,2]
[372932498,1752813047050,-2433.29,0.00016712,2]
[372932499,1752813047059,-1705.16,0.00016712,2]
[372932500,1752813047068,-169.05178308,0.00016712,2]
[372932501,1752813047077,-460.0,0.00016712,2]
[372932502,1752813047086,-460.0,0.00016712,2]
[372932503,1752813047095,-460.0,0.00016712,2]
[372932504,1752813047104,-460.0,0.00016712,2]
[372932505,1752813047114,-1722.56,0.00016712,2]
[372932506,1752813047123,-460.0,0.00016712,2]
[372932507,1752813047133,-460.0,0.00016712,2]
[372932508,1752813047142,-460.0,0.00016712,2]
[372932509,1752813047152,-460.0,0.00016712,2]
[372932510,1752813047161,-460.0,0.00016712,2]
[372932511,1752813047170,-460.0,0.00016712,2]
[372932512,1752813047180,-460.0,0.00016712,2]
[372932513,1752813047191,-460.0,0.00016712,2]
[372932514,1752813047200,-460.0,0.00016712,2]
[372932515,1752813047210,-460.0,0.00016712,2]
[372932516,1752813047220,-460.0,0.00016712,2]
[372932517,1752813047230,-2489.82,0.00016712,2]
[372932518,1752813047240,-505.66,0.00016712,2]
[372932519,1752813047249,-2945.34,0.00016712,2]
[372932520,1752813047259,-460.0,0.00016712,2]
[372932521,1752813047269,-460.0,0.00016712,2]
[372932522,1752813047280,-460.0,0.00016712,2]
[372932523,1752813047289,-460.0,0.00016712,2]
[372932524,1752813047299,-633.48,0.00016712,2]
[372932525,1752813047308,-245.04428866,0.00016712,2]
[372932526,1752813047317,-460.0,0.00016712,2]
[372932527,1752813047327,-460.0,0.00016712,2]
[372932528,1752813047336,-460.0,0.00016712,2]
[372932529,1752813047346,-500.0,0.00016773,2]
[372932530,1752813047355,-158.06559516,0.00016773,2]
[372932531,1752813047365,-500.0,0.00016773,2]
[372932532,1752813047375,-470.65309576,0.00016773,2]
[372932533,1752813047384,-500.0,0.00016773,2]
[372932534,1752813047393,-500.0,0.00016773,2]
[372932535,1752813047403,-155.0,0.00016786,2]
[372932536,1752813047416,-340.0,0.00016898,2]
[372932537,1752813047425,-1886.83589596,0.00016955,2]
[372932538,1752813047435,-500.44364371,0.00016973,2]
[372932539,1752813047445,-502.99859168,0.00016973,2]
[372932540,1752813047455,-500.96256715,0.00016973,2]
[372932541,1752813047465,-500.0,0.00016973,2]
[372932542,1752813047475,-501.54652161,0.00016973,2]
[372932543,1752813047484,-501.26367768,0.00016973,2]
[372932544,1752813047495,-503.93358597,0.00016973,2]
[372932545,1752813047504,-500.85686421,0.00016973,2]
[372932546,1752813047514,-501.46377135,0.00016973,2]
[372932547,1752813047524,-500.0,0.00016973,2]
[372932548,1752813047533,-501.33414174,0.00016973,2]
[372932549,1752813047542,-501.09296893,0.00016973,2]
[372932550,1752813047551,-644.0334221,0.00016973,2]
[372932551,1752813047561,-460.0,0.00016986,2]
[372932552,1752813047570,-460.0,0.00016986,2]
[372932553,1752813047581,-460.0,0.00016986,2]
[372932554,1752813047591,-460.0,0.00016986,2]
[372932555,1752813047602,-460.0,0.00016986,2]
[372932556,1752813047611,-460.0,0.00016986,2]
[372932557,1752813047620,-460.0,0.00016986,2]
[372932558,1752813047629,-154.35071347,0.00016986,2]
[372932559,1752813047641,-460.0,0.00016986,2]
[372932560,1752813047650,-460.0,0.00016986,2]
[372932561,1752813047659,-460.0,0.00016986,2]
[372932562,1752813047669,-460.0,0.00016986,2]
[372932563,1752813047678,-460.0,0.00016986,2]
[372932564,1752813047687,-469.61512153,0.00016986,2]
[372932565,1752813047697,-460.0,0.00016986,2]
[372932566,1752813047707,-466.15166201,0.00016986,2]
[372932567,1752813047716,-460.0,0.00016986,2]
[372932568,1752813047725,-414.35973933,0.00016986,2]
[372932569,1752813047734,-460.0,0.00016986,2]
[372932570,1752813047743,-460.0,0.00016986,2]
[372932571,1752813047753,-370.00515236,0.00016986,2]
[372932572,1752813047762,-466.54269439,0.00016986,2]
[372932573,1752813047772,-460.0,0.00016986,2]
[372932574,1752813047781,-462.99656138,0.00016986,2]
[372932575,1752813047790,-460.0,0.00016986,2]
[372932576,1752813047799,-460.0,0.00016986,2]
[372932577,1752813047808,-460.0,0.00016986,2]
[372932578,1752813047817,-513.5,0.00016986,2]
[372932579,1752813047827,-460.0,0.00016986,2]
[372932580,1752813047836,-460.0,0.00016986,2]
[372932581,1752813047845,-567.04,0.00016986,2]
[372932582,1752813047855,-460.0,0.00016986,2]
[372932583,1752813047865,-467.11744404,0.00016986,2]
[372932584,1752813047875,-460.0,0.00016986,2]
[372932585,1752813047884,-464.19871715,0.00016986,2]
[372932586,1752813047894,-460.0,0.00016986,2]
[372932587,1752813047904,-460.0,0.00016986,2]
[372932588,1752813047913,-460.0,0.00016986,2]
[372932589,1752813047923,-462.82474694,0.00016986,2]
[372932590,1752813047932,-185.02,0.00016986,2]
[372932591,1752813047943,-460.0,0.00016986,2]
[372932592,1752813047952,-590.38328388,0.00016986,2]
[372932593,1752813047962,-460.0,0.00016986,2]
[372932594,1752813047971,-460.0,0.00016986,2]
[372932595,1752813047981,-460.0,0.00016986,2]
[372932596,1752813047990,-460.0,0.00016986,2]
[372932597,1752813047999,-460.0,0.00016986,2]
[372932598,1752813048009,-465.92412801,0.00016986,2]
[372932599,1752813048018,-460.0,0.00016986,2]
[372932600,1752813048027,-460.0,0.00016986,2]
[372932601,1752813048037,-460.0,0.00016986,2]
[372932602,1752813048046,-460.0,0.00016986,2]
[372932603,1752813048056,-460.0,0.00016986,2]
[372932604,1752813048065,-461.43754657,0.00016986,2]